[Event "The Elitserien 2024/25: round 1 - 3"]
[Site "Scandic Infra City, Kanalvagen 10, Upplands Vasby, Sweden"]
[Date "2024.10.05"]
[Round "2.39"]
[White "Wiedenkeller, Michael"]
[Black "Jonsson, Mikael"]
[Result "1/2-1/2"]
[TimeControl "90 minutes for 40 moves + 30 minutes for the rest of the game + 30 seconds per move from move one."]
[WhiteTitle "IM"]
[WhiteFideId "1700146"]
[BlackFideId "1702041"]
[WhiteElo "2406"]
[BlackElo "2176"]

1. d4 {[%clk 01:30:05]} {[%emt 00:00:54]} d5 {[%clk 01:30:28]} {[%emt
00:00:33]} 2. c4 {[%clk 01:30:27]} {[%emt 00:00:08]} c6 {[%clk 01:30:43]}
{[%emt 00:00:14]} 3. cxd5 {[%clk 01:30:24]} {[%emt 00:00:33]} cxd5 {[%clk
01:31:02]} {[%emt 00:00:11]} 4. Bf4 {[%clk 01:30:46]} {[%emt 00:00:08]} Nc6
{[%clk 01:31:11]} {[%emt 00:00:22]} 5. e3 {[%clk 01:31:09]} {[%emt 00:00:07]}
Nf6 {[%clk 01:28:29]} {[%emt 00:03:11]} 6. Bb5 {[%clk 01:29:28]} {[%emt
00:02:12]} Bd7 {[%clk 01:22:10]} {[%emt 00:06:49]} 7. Nc3 {[%clk 01:29:14]}
{[%emt 00:00:44]} e6 {[%clk 01:21:40]} {[%emt 00:00:59]} 8. Nf3 {[%clk
01:28:27]} {[%emt 00:01:17]} Ne4 {[%clk 01:07:05]} {[%emt 00:15:05]} 9. O-O
{[%clk 01:09:13]} {[%emt 00:19:45]} Nxc3 {[%clk 01:03:51]} {[%emt 00:03:44]} 10.
bxc3 {[%clk 01:09:36]} {[%emt 00:00:07]} Be7 {[%clk 01:04:02]} {[%emt
00:00:18]} 11. c4 {[%clk 00:57:50]} {[%emt 00:12:17]} a6 {[%clk 00:52:30]}
{[%emt 00:12:02]} 12. Bxc6 {[%clk 00:49:11]} {[%emt 00:09:09]} Bxc6 {[%clk
00:52:48]} {[%emt 00:00:12]} 13. Ne5 {[%clk 00:48:48]} {[%emt 00:00:52]} dxc4
{[%clk 00:43:44]} {[%emt 00:09:34]} 14. Nxc6 {[%clk 00:46:57]} {[%emt
00:02:22]} bxc6 {[%clk 00:44:08]} {[%emt 00:00:07]} 15. Qa4 {[%clk 00:37:36]}
{[%emt 00:09:51]} O-O {[%clk 00:26:28]} {[%emt 00:18:09]} 16. Qxc4 {[%clk
00:35:38]} {[%emt 00:02:28]} Qa5 {[%clk 00:20:39]} {[%emt 00:06:19]} 17. Qxc6
{[%clk 00:27:56]} {[%emt 00:08:11]} Rac8 {[%clk 00:19:58]} {[%emt 00:01:10]} 18.
Qb7 {[%clk 00:26:40]} {[%emt 00:01:48]} Ba3 {[%clk 00:18:56]} {[%emt 00:01:32]}
19. Rab1 {[%clk 00:25:06]} {[%emt 00:02:03]} Rc2 {[%clk 00:07:58]} {[%emt
00:11:28]} 20. Rb6 {[%clk 00:18:55]} {[%emt 00:06:42]} Rxa2 {[%clk 00:01:57]}
{[%emt 00:06:31]} 21. Rxa6 {[%clk 00:17:43]} {[%emt 00:01:42]} Qc3 {[%clk
00:01:46]} {[%emt 00:00:40]} 22. h3 {[%clk 00:06:15]} {[%emt 00:11:58]} Re2
{[%clk 00:00:41]} {[%emt 00:01:35]} 23. Ra8 {[%clk 00:03:05]} {[%emt 00:03:41]}
Re1 {[%clk 00:00:41]} {[%emt 00:00:30]} 24. Rxe1 {[%clk 00:03:20]} {[%emt
00:00:16]} Qxe1+ {[%clk 00:01:03]} {[%emt 00:00:08]} 25. Kh2 {[%clk 00:03:49]}
Qb4 {[%clk 00:00:35]} {[%emt 00:00:58]} 26. Qxb4 {[%clk 00:02:30]} {[%emt
00:01:49]} Bxb4 {[%clk 00:01:00]} {[%emt 00:00:05]} 27. Ra4 {[%clk 00:02:45]}
{[%emt 00:00:14]} Be7 {[%clk 00:01:18]} {[%emt 00:00:13]} 28. e4 {[%clk
00:01:22]} {[%emt 00:01:53]} Rd8 {[%clk 00:01:28]} {[%emt 00:00:20]} 29. Be3
{[%clk 00:01:36]} {[%emt 00:00:16]} Bd6+ {[%clk 00:01:32]} {[%emt 00:00:25]} 30.
g3 {[%clk 00:01:42]} {[%emt 00:00:25]} Kf8 {[%clk 00:01:48]} {[%emt 00:00:13]}
31. Kg2 {[%clk 00:01:20]} {[%emt 00:00:52]} Ke8 {[%clk 00:02:02]} {[%emt
00:00:17]} 32. Kf3 {[%clk 00:01:33]} {[%emt 00:00:17]} h5 {[%clk 00:01:40]}
{[%emt 00:00:52]} 33. Bf4 {[%clk 00:01:14]} {[%emt 00:00:48]} Be7 {[%clk
00:01:57]} {[%emt 00:00:13]} 34. Bc7 {[%clk 00:00:45]} {[%emt 00:01:00]} Rc8
{[%clk 00:02:17]} {[%emt 00:00:10]} 35. Ra7 {[%clk 00:01:09]} {[%emt 00:00:05]}
g6 {[%clk 00:02:11]} {[%emt 00:00:37]} 36. d5 {[%clk 00:01:19]} {[%emt
00:00:21]} exd5 {[%clk 00:02:20]} {[%emt 00:00:20]} 37. exd5 {[%clk 00:01:47]}
{[%emt 00:00:01]} Bc5 {[%clk 00:02:36]} {[%emt 00:00:15]} 38. Rb7 {[%clk
00:02:08]} {[%emt 00:00:09]} Ra8 {[%clk 00:02:59]} {[%emt 00:00:06]} 39. Bf4
{[%clk 00:01:28]} {[%emt 00:01:11]} Ra1 {[%clk 00:00:39]} {[%emt 00:02:50]} 40.
Rc7 {[%clk 00:00:34]} {[%emt 00:01:24]} Bb6 {[%clk 00:00:46]} {[%emt 00:00:23]}
41. Rb7 {[%clk 00:25:23]} {[%emt 00:05:41]} Bd8 {[%clk 00:25:47]} {[%emt
00:05:28]} 42. h4 {[%clk 00:21:29]} {[%emt 00:04:25]} Rd1 {[%clk 00:25:49]}
{[%emt 00:00:29]} 43. d6 {[%clk 00:21:07]} {[%emt 00:00:51]} Bf6 {[%clk
00:25:30]} {[%emt 00:00:48]} 44. Ke3 {[%clk 00:18:23]} {[%emt 00:03:13]} Rd5
{[%clk 00:25:40]} {[%emt 00:00:20]} 45. Rb4 {[%clk 00:16:32]} {[%emt 00:02:23]}
Kd7 {[%clk 00:24:09]} {[%emt 00:02:01]} 46. Ke4 {[%clk 00:15:51]} {[%emt
00:01:11]} Rd1 {[%clk 00:24:28]} {[%emt 00:00:11]} 47. Rb8 {[%clk 00:11:19]}
{[%emt 00:05:03]} Rd4+ {[%clk 00:24:31]} {[%emt 00:00:26]} 48. Ke3 {[%clk
00:11:43]} {[%emt 00:00:06]} Rd1 {[%clk 00:24:53]} {[%emt 00:00:08]} 49. Rb3
{[%clk 00:10:29]} {[%emt 00:01:45]} Rd5 {[%clk 00:24:14]} {[%emt 00:01:09]} 50.
Rd3 {[%clk 00:10:12]} {[%emt 00:00:47]} Rxd3+ 51. Kxd3 {[%clk 00:10:40]} Bb2
{[%clk 00:19:28]} {[%emt 00:00:10]} 52. f3 {[%clk 00:08:20]} {[%emt 00:02:50]}
Ba3 {[%clk 00:19:19]} {[%emt 00:00:39]} 53. Ke4 {[%clk 00:07:49]} {[%emt
00:01:00]} Bxd6 {[%clk 00:19:03]} {[%emt 00:00:45]} 54. Bxd6 {[%clk 00:07:47]}
{[%emt 00:00:32]} Kxd6 {[%clk 00:19:26]} {[%emt 00:00:07]} 55. Kf4 {[%clk
00:08:13]} {[%emt 00:00:05]} f6 {[%clk 00:19:37]} {[%emt 00:00:18]} 56. g4
{[%clk 00:07:48]} {[%emt 00:00:55]} hxg4 {[%clk 00:19:51]} {[%emt 00:00:16]} 57.
fxg4 {[%clk 00:07:51]} {[%emt 00:00:28]} Ke6 {[%clk 00:20:12]} {[%emt
00:00:08]} 58. h5 {[%clk 00:07:53]} {[%emt 00:00:28]} gxh5 {[%clk 00:20:25]}
{[%emt 00:00:17]} 59. gxh5 {[%clk 00:08:20]} {[%emt 00:00:04]} Kf7 {[%clk
00:20:44]} {[%emt 00:00:10]} 60. Ke4 {[%emt 00:01:59]} 1/2-1/2

[Event "The Elitserien 2024/25: round 1 - 3"]
[Site "Scandic Infra City, Kanalvagen 10, Upplands Vasby, Sweden"]
[Date "2024.10.05"]
[Round "2.40"]
[White "Larsson, Anders"]
[Black "Sorensen, Hampus"]
[Result "0-1"]
[TimeControl "90 minutes for 40 moves + 30 minutes for the rest of the game + 30 seconds per move from move one."]
[WhiteTitle "FM"]
[BlackTitle "IM"]
[WhiteFideId "1712128"]
[BlackFideId "8703884"]
[WhiteElo "2211"]
[BlackElo "2420"]

1. e4 {[%clk 01:30:54]} {[%emt 00:00:04]} c5 {[%clk 01:30:40]} {[%emt
00:00:21]} 2. Nf3 {[%clk 01:30:50]} {[%emt 00:00:34]} d6 {[%clk 01:30:58]}
{[%emt 00:00:12]} 3. Bb5+ {[%clk 01:29:28]} {[%emt 00:01:52]} Bd7 {[%clk
01:31:08]} {[%emt 00:00:20]} 4. a4 {[%clk 01:28:26]} {[%emt 00:01:31]} Nf6
{[%clk 01:30:57]} {[%emt 00:00:42]} 5. e5 {[%clk 01:24:04]} {[%emt 00:04:52]}
dxe5 {[%clk 01:20:37]} {[%emt 00:10:51]} 6. Nxe5 {[%clk 01:23:41]} {[%emt
00:00:52]} g6 {[%clk 01:14:38]} {[%emt 00:06:29]} 7. O-O {[%clk 01:09:06]}
{[%emt 00:15:05]} Bg7 {[%clk 01:13:18]} {[%emt 00:01:51]} 8. Nc3 {[%clk
01:08:41]} {[%emt 00:00:54]} O-O {[%clk 01:13:02]} {[%emt 00:00:46]} 9. Nxd7
{[%clk 01:09:03]} {[%emt 00:00:08]} Nbxd7 {[%clk 01:13:24]} {[%emt 00:00:07]}
10. Re1 {[%clk 01:04:09]} {[%emt 00:05:24]} e6 {[%clk 01:05:11]} {[%emt
00:08:43]} 11. Bf1 {[%clk 00:55:26]} {[%emt 00:09:13]} Nb8 {[%clk 00:56:01]}
{[%emt 00:09:41]} 12. d3 {[%clk 00:53:02]} {[%emt 00:02:54]} Nc6 {[%clk
00:53:34]} {[%emt 00:02:57]} 13. Be3 {[%clk 00:49:05]} {[%emt 00:04:27]} Nd4
{[%clk 00:49:12]} {[%emt 00:04:51]} 14. Ne4 {[%clk 00:47:53]} {[%emt 00:01:43]}
Nd5 {[%clk 00:44:47]} {[%emt 00:04:55]} 15. c3 {[%clk 00:39:51]} {[%emt
00:08:32]} Nxe3 {[%clk 00:44:07]} {[%emt 00:01:10]} 16. fxe3 {[%clk 00:39:51]}
{[%emt 00:00:31]} Nf5 {[%clk 00:43:49]} {[%emt 00:00:47]} 17. Nxc5 {[%clk
00:30:41]} {[%emt 00:09:41]} Nxe3 {[%clk 00:39:08]} {[%emt 00:05:11]} 18. Rxe3
{[%clk 00:25:59]} {[%emt 00:05:10]} Qg5 {[%clk 00:39:30]} {[%emt 00:00:08]} 19.
Qf3 {[%clk 00:25:19]} {[%emt 00:01:11]} Qxc5 {[%clk 00:39:53]} {[%emt
00:00:07]} 20. d4 {[%clk 00:25:01]} {[%emt 00:00:47]} Qb6 {[%clk 00:39:31]}
{[%emt 00:00:52]} 21. Qf2 {[%clk 00:24:20]} {[%emt 00:01:13]} Qa5 {[%clk
00:35:06]} {[%emt 00:04:53]} 22. Kh1 {[%clk 00:18:50]} {[%emt 00:06:00]} Rad8
{[%clk 00:31:39]} {[%emt 00:03:57]} 23. Qe1 {[%clk 00:15:42]} {[%emt 00:03:40]}
Rfe8 {[%clk 00:29:29]} {[%emt 00:02:39]} 24. Bc4 {[%clk 00:12:38]} {[%emt
00:03:32]} Re7 {[%clk 00:23:43]} {[%emt 00:06:17]} 25. Qh4 {[%clk 00:10:31]}
{[%emt 00:02:37]} Red7 {[%clk 00:23:34]} {[%emt 00:00:39]} 26. Rae1 {[%clk
00:06:02]} {[%emt 00:04:59]} Qxa4 {[%clk 00:19:11]} {[%emt 00:04:52]} 27. b3
{[%clk 00:05:47]} {[%emt 00:00:45]} Qa3 {[%clk 00:10:46]} {[%emt 00:08:55]} 28.
h3 {[%clk 00:01:56]} {[%emt 00:04:21]} Qe7 {[%clk 00:09:53]} {[%emt 00:01:23]}
29. Qg4 {[%clk 00:02:10]} {[%emt 00:00:16]} Rd6 {[%clk 00:09:15]} {[%emt
00:01:08]} 30. Qe4 {[%clk 00:01:14]} {[%emt 00:01:26]} a6 {[%clk 00:08:47]}
{[%emt 00:00:58]} 31. Be2 {[%clk 00:00:59]} {[%emt 00:00:45]} Qc7 {[%clk
00:08:04]} {[%emt 00:01:13]} 32. Bf3 {[%clk 00:01:03]} {[%emt 00:00:26]} b5
{[%clk 00:06:59]} {[%emt 00:01:34]} 33. b4 {[%clk 00:01:12]} {[%emt 00:00:21]}
a5 {[%clk 00:05:21]} {[%emt 00:02:09]} 34. bxa5 {[%clk 00:01:04]} {[%emt
00:00:38]} Qxa5 {[%clk 00:05:37]} {[%emt 00:00:14]} 35. Rb1 {[%clk 00:01:03]}
{[%emt 00:00:31]} Rb6 {[%clk 00:04:21]} {[%emt 00:01:46]} 36. Qd3 {[%clk
00:00:44]} {[%emt 00:00:49]} b4 {[%clk 00:04:11]} {[%emt 00:00:40]} 37. cxb4
{[%clk 00:00:57]} {[%emt 00:00:17]} Rxb4 {[%clk 00:04:34]} {[%emt 00:00:07]} 38.
Rxb4 {[%clk 00:01:19]} {[%emt 00:00:09]} Qxb4 {[%clk 00:05:01]} {[%emt
00:00:02]} 39. d5 {[%clk 00:01:25]} {[%emt 00:00:24]} Qc5 {[%clk 00:03:38]}
{[%emt 00:01:53]} 40. Qe2 {[%clk 00:00:38]} {[%emt 00:01:17]} Qc1+ {[%clk
00:02:35]} {[%emt 00:01:33]} 41. Qe1 {[%clk 00:00:34]} {[%emt 00:00:34]} Qxe1+
{[%clk 00:01:52]} {[%emt 00:01:13]} 42. Rxe1 {[%clk 00:01:02]} {[%emt
00:00:03]} exd5 {[%clk 00:02:12]} {[%emt 00:00:10]} 43. Rd1 {[%clk 00:27:42]}
{[%emt 00:03:49]} d4 {[%clk 00:32:28]} {[%emt 00:00:14]} 44. Kg1 {[%clk
00:27:33]} {[%emt 00:00:39]} d3 {[%clk 00:29:15]} {[%emt 00:03:44]} 0-1

[Event "The Elitserien 2024/25: round 1 - 3"]
[Site "Scandic Infra City, Kanalvagen 10, Upplands Vasby, Sweden"]
[Date "2024.10.06"]
[Round "3.1"]
[White "Johansson, Linus"]
[Black "Peng, Li Min"]
[Result "1/2-1/2"]
[TimeControl "90 minutes for 40 moves + 30 minutes for the rest of the game + 30 seconds per move from move one."]
[WhiteTitle "IM"]
[BlackTitle "GM"]
[WhiteFideId "1711113"]
[BlackFideId "14112620"]
[WhiteElo "2416"]
[BlackElo "2514"]

1. d4 {[%clk 01:30:58]} {[%emt 00:00:01]} e6 {[%clk 01:19:31]} {[%emt
00:11:28]} 2. e4 {[%clk 01:30:53]} {[%emt 00:00:37]} d5 {[%clk 01:19:52]}
{[%emt 00:00:09]} 3. Nd2 {[%clk 01:31:10]} {[%emt 00:00:13]} Nf6 {[%clk
01:13:06]} {[%emt 00:07:16]} 4. e5 {[%clk 01:31:30]} {[%emt 00:00:09]} Nfd7
{[%clk 01:13:32]} {[%emt 00:00:05]} 5. c3 {[%clk 01:31:31]} {[%emt 00:00:30]}
c5 {[%clk 01:13:51]} {[%emt 00:00:09]} 6. Bd3 {[%clk 01:31:27]} {[%emt
00:00:34]} Be7 {[%clk 01:14:12]} {[%emt 00:00:09]} 7. Ne2 {[%clk 01:30:02]}
{[%emt 00:01:55]} Nc6 {[%clk 01:13:15]} {[%emt 00:01:27]} 8. O-O {[%clk
01:28:20]} {[%emt 00:02:12]} O-O {[%clk 01:12:41]} {[%emt 00:01:04]} 9. Nf3
{[%clk 01:16:04]} {[%emt 00:12:46]} f6 {[%clk 01:05:44]} {[%emt 00:07:28]} 10.
Nf4 {[%clk 01:12:37]} {[%emt 00:03:57]} Ndxe5 {[%clk 01:02:15]} {[%emt
00:03:58]} 11. dxe5 {[%clk 01:00:17]} {[%emt 00:12:51]} fxe5 {[%clk 01:02:27]}
{[%emt 00:00:18]} 12. Ne2 {[%clk 01:00:35]} {[%emt 00:00:12]} e4 {[%clk
01:00:46]} {[%emt 00:02:10]} 13. Bxe4 {[%clk 01:01:01]} {[%emt 00:00:05]} dxe4
{[%clk 01:01:13]} {[%emt 00:00:02]} 14. Qxd8 {[%clk 01:01:23]} {[%emt
00:00:08]} Rxd8 {[%clk 00:49:03]} {[%emt 00:12:41]} 15. Ng5 {[%clk 01:01:42]}
{[%emt 00:00:10]} b6 {[%clk 00:46:52]} {[%emt 00:02:42]} 16. Ng3 {[%clk
00:59:25]} {[%emt 00:02:46]} h6 {[%clk 00:46:02]} {[%emt 00:01:19]} 17. N5xe4
{[%clk 00:59:49]} {[%emt 00:00:08]} Ba6 {[%clk 00:45:41]} {[%emt 00:00:51]} 18.
Re1 {[%clk 00:59:55]} {[%emt 00:00:24]} Ne5 {[%clk 00:46:06]} {[%emt 00:00:05]}
19. Be3 {[%clk 00:55:52]} {[%emt 00:04:32]} Nd3 {[%clk 00:33:19]} {[%emt
00:13:17]} 20. Reb1 {[%clk 00:56:10]} {[%emt 00:00:12]} Bb7 {[%clk 00:33:05]}
{[%emt 00:00:45]} 21. f3 {[%clk 00:54:17]} {[%emt 00:02:23]} Rd7 {[%clk
00:28:26]} {[%emt 00:05:08]} 22. a4 {[%clk 00:41:40]} {[%emt 00:13:08]} Ne5
{[%clk 00:25:08]} {[%emt 00:03:47]} 23. Nf2 {[%clk 00:28:12]} {[%emt 00:13:57]}
Nc4 {[%clk 00:18:30]} {[%emt 00:07:10]} 24. Bc1 {[%clk 00:28:05]} {[%emt
00:00:37]} Na5 {[%clk 00:18:57]} {[%emt 00:00:03]} 25. b4 {[%clk 00:23:40]}
{[%emt 00:04:55]} Nc4 {[%clk 00:19:24]} {[%emt 00:00:02]} 26. Nge4 {[%clk
00:15:55]} {[%emt 00:08:15]} cxb4 {[%clk 00:18:10]} {[%emt 00:01:45]} 27. cxb4
{[%clk 00:16:16]} {[%emt 00:00:08]} Rc8 {[%clk 00:18:38]} {[%emt 00:00:02]} 28.
Bf4 {[%clk 00:14:09]} {[%emt 00:02:38]} e5 {[%clk 00:14:41]} {[%emt 00:04:27]}
29. Bg3 {[%clk 00:14:20]} {[%emt 00:00:19]} Nd2 {[%clk 00:15:07]} {[%emt
00:00:04]} 30. Rd1 {[%clk 00:06:05]} {[%emt 00:08:45]} Bxb4 {[%clk 00:13:10]}
{[%emt 00:02:26]} 31. Bxe5 {[%clk 00:04:53]} {[%emt 00:01:43]} Rd5 {[%clk
00:13:33]} {[%emt 00:00:06]} 32. Nxd2 {[%clk 00:04:07]} {[%emt 00:01:16]} Bxd2
{[%clk 00:08:06]} {[%emt 00:05:58]} 33. Bg3 {[%clk 00:04:06]} {[%emt 00:00:30]}
Be3 {[%clk 00:07:24]} {[%emt 00:01:12]} 34. Re1 {[%clk 00:03:45]} {[%emt
00:00:51]} Rc3 {[%clk 00:06:33]} {[%emt 00:01:20]} 35. h4 {[%clk 00:03:28]}
{[%emt 00:00:48]} Bc6 {[%clk 00:06:34]} {[%emt 00:00:30]} 36. Kh2 {[%clk
00:03:01]} {[%emt 00:00:57]} Rb3 {[%clk 00:06:11]} {[%emt 00:00:53]} 37. Ng4
{[%clk 00:02:21]} {[%emt 00:01:09]} Bd4 {[%clk 00:06:33]} {[%emt 00:00:08]} 38.
Rac1 {[%clk 00:02:24]} {[%emt 00:00:27]} Bc5 {[%clk 00:06:59]} {[%emt
00:00:04]} 39. Bf2 {[%clk 00:00:40]} {[%emt 00:02:14]} Bd6+ {[%clk 00:04:22]}
{[%emt 00:03:08]} 40. Bg3 {[%clk 00:01:00]} {[%emt 00:00:10]} Bc5 {[%clk
00:04:49]} {[%emt 00:00:03]} 41. Bf2 {[%clk 00:21:56]} {[%emt 00:09:32]} Bxa4
{[%clk 00:33:33]} {[%emt 00:01:47]} 42. Bxc5 {[%clk 00:21:18]} {[%emt
00:01:08]} Rxc5 {[%clk 00:33:59]} {[%emt 00:00:05]} 43. Rxc5 {[%clk 00:20:45]}
{[%emt 00:01:02]} bxc5 {[%clk 00:34:25]} {[%emt 00:00:04]} 44. Re7 {[%clk
00:21:05]} {[%emt 00:00:10]} a5 {[%clk 00:32:39]} {[%emt 00:02:17]} 45. Rc7
{[%clk 00:16:17]} {[%emt 00:05:18]} Rb5 {[%clk 00:30:00]} {[%emt 00:03:08]} 46.
Ne5 {[%clk 00:15:54]} {[%emt 00:00:53]} Bc2 {[%clk 00:30:26]} {[%emt 00:00:04]}
47. Rc8+ {[%clk 00:14:09]} {[%emt 00:02:15]} Kh7 {[%clk 00:30:48]} {[%emt
00:00:08]} 48. g4 {[%clk 00:12:54]} {[%emt 00:01:45]} a4 {[%clk 00:21:02]}
{[%emt 00:10:16]} 1/2-1/2